[Event "Early-Titled-Tuesday-Blitz-June-18-2024"]
[Site "Chess.com"]
[Date "2024.06.18"]
[Round "4"]
[White "Sargsyan_Shant"]
[Black "js20000"]
[Result "1-0"]
[WhiteElo "2967"]
[BlackElo "2788"]
[TimeControl "180+1"]
[EndTime "8:42:00 PDT"]
[Termination "Sargsyan_Shant won by resignation"]

1. c4 {[%clk 0:03:00.2]} 1... e6 {[%clk 0:02:59.2]} 2. g3 {[%clk 0:03:00.2]}
2... d5 {[%clk 0:03:00.1]} 3. Bg2 {[%clk 0:03:00.5]} 3... Nf6 {[%clk 0:03:00.3]}
4. Nf3 {[%clk 0:03:00.9]} 4... h6 {[%clk 0:02:59]} 5. O-O {[%clk 0:03:00.4]}
5... Bd6 {[%clk 0:02:59.5]} 6. b3 {[%clk 0:02:59.6]} 6... O-O {[%clk 0:02:58.9]}
7. Bb2 {[%clk 0:02:59.8]} 7... Nc6 {[%clk 0:02:50.8]} 8. d4 {[%clk 0:02:56.9]}
8... a5 {[%clk 0:02:39.9]} 9. Nc3 {[%clk 0:02:56.7]} 9... Bd7 {[%clk 0:02:37.6]}
10. Rc1 {[%clk 0:02:56.5]} 10... Re8 {[%clk 0:02:32.5]} 11. e3 {[%clk
0:02:40.3]} 11... a4 {[%clk 0:02:16.2]} 12. c5 {[%clk 0:02:28.6]} 12... a3
{[%clk 0:02:16.3]} 13. Bxa3 {[%clk 0:02:28]} 13... Rxa3 {[%clk 0:01:58.2]} 14.
cxd6 {[%clk 0:02:28.1]} 14... cxd6 {[%clk 0:01:58.1]} 15. Nb5 {[%clk 0:02:28.3]}
15... Rxa2 {[%clk 0:01:58.3]} 16. Nxd6 {[%clk 0:02:28.4]} 16... Re7 {[%clk
0:01:55.3]} 17. Nxb7 {[%clk 0:02:28.5]} 17... Qb6 {[%clk 0:01:55.4]} 18. Nc5
{[%clk 0:02:28.5]} 18... Be8 {[%clk 0:01:53.3]} 19. Ne1 {[%clk 0:02:05.8]} 19...
Rea7 {[%clk 0:01:49.6]} 20. Ned3 {[%clk 0:02:05.7]} 20... Nb4 {[%clk 0:01:48.6]}
21. Nxb4 {[%clk 0:01:53.1]} 21... Qxb4 {[%clk 0:01:49.5]} 22. Nd3 {[%clk
0:01:53.6]} 22... Qb8 {[%clk 0:01:23.4]} 23. Rc3 {[%clk 0:01:40.9]} 23... Bb5
{[%clk 0:01:14.8]} 24. Qc1 {[%clk 0:01:41]} 24... Ra8 {[%clk 0:01:14]} 25. Rd1
{[%clk 0:01:38.4]} 25... Bxd3 {[%clk 0:00:48.1]} 26. Rcxd3 {[%clk 0:01:39.3]}
26... Ng4 {[%clk 0:00:48.4]} 27. Rf1 {[%clk 0:01:14.9]} 27... Nxf2 {[%clk
0:00:46.7]} 28. Rc3 {[%clk 0:01:11.5]} 28... Ng4 {[%clk 0:00:46.5]} 29. Qe1
{[%clk 0:00:50.7]} 29... Nf6 {[%clk 0:00:43.2]} 30. Bf3 {[%clk 0:00:40.4]} 30...
Qd6 {[%clk 0:00:35.8]} 31. Qc1 {[%clk 0:00:38]} 31... e5 {[%clk 0:00:29.1]} 32.
Rc8+ {[%clk 0:00:37.1]} 32... Kh7 {[%clk 0:00:24.3]} 33. Rc6 {[%clk 0:00:28.7]}
33... Qe7 {[%clk 0:00:21.4]} 34. Rc7 {[%clk 0:00:28.4]} 34... Qe6 {[%clk
0:00:20.5]} 35. dxe5 {[%clk 0:00:17]} 35... Qxe5 {[%clk 0:00:17.9]} 36. Rxf7
{[%clk 0:00:17.5]} 36... Ra1 {[%clk 0:00:17.2]} 37. Qc2+ {[%clk 0:00:17.5]}
37... Kg8 {[%clk 0:00:17.3]} 38. Qg6 {[%clk 0:00:17.9]} 38... Rxf1+ {[%clk
0:00:12.4]} 39. Kxf1 {[%clk 0:00:17.2]} 39... Ra1+ {[%clk 0:00:12.9]} 40. Kg2
{[%clk 0:00:16]} 40... Ra2+ {[%clk 0:00:12.9]} 41. Be2 {[%clk 0:00:12.4]} 41...
Qe4+ {[%clk 0:00:08.6]} 42. Qxe4 {[%clk 0:00:07.1]} 42... Nxe4 {[%clk
0:00:07.5]} 43. Rf2 {[%clk 0:00:04.6]} 43... Nxf2 {[%clk 0:00:07.8]} 44. Kxf2
{[%clk 0:00:05.5]} 44... Rb2 {[%clk 0:00:08.4]} 45. Kf3 {[%clk 0:00:05.8]} 45...
Rxb3 {[%clk 0:00:09]} 46. h4 {[%clk 0:00:06.7]} 46... d4 {[%clk 0:00:09.2]} 47.
Bc4+ {[%clk 0:00:06.5]} 47... Kh7 {[%clk 0:00:09.1]} 48. Bxb3 {[%clk 0:00:05.9]}
48... dxe3 {[%clk 0:00:10]} 49. Bc2+ {[%clk 0:00:06.1]} 49... g6 {[%clk
0:00:09]} 50. Kxe3 {[%clk 0:00:07]} 50... Kg7 {[%clk 0:00:09.2]} 51. Kf4 {[%clk
0:00:07.2]} 51... Kf6 {[%clk 0:00:10.1]} 52. g4 {[%clk 0:00:07]} 52... g5+
{[%clk 0:00:09.5]} 53. hxg5+ {[%clk 0:00:07.2]} 53... hxg5+ {[%clk 0:00:10.4]}
54. Ke4 {[%clk 0:00:07.9]} 1-0

[Event "Early-Titled-Tuesday-Blitz-June-18-2024"]
[Site "Chess.com"]
[Date "2024.06.18"]
[Round "4"]
[White "ATM622"]
[Black "Dolphin_2010"]
[Result "0-1"]
[WhiteElo "2544"]
[BlackElo "2744"]
[TimeControl "180+1"]
[EndTime "8:42:01 PDT"]
[Termination "Dolphin_2010 won by resignation"]

1. d4 {[%clk 0:03:00.9]} 1... d5 {[%clk 0:02:58.4]} 2. c4 {[%clk 0:03:00.7]}
2... c6 {[%clk 0:02:58.2]} 3. Nf3 {[%clk 0:03:00.7]} 3... Nf6 {[%clk 0:02:51.5]}
4. Nbd2 {[%clk 0:03:00.5]} 4... Bf5 {[%clk 0:02:43]} 5. Nh4 {[%clk 0:03:00.1]}
5... Be4 {[%clk 0:02:42.4]} 6. e3 {[%clk 0:02:59.9]} 6... e6 {[%clk 0:02:42.1]}
7. Be2 {[%clk 0:02:59.8]} 7... Nbd7 {[%clk 0:02:36.4]} 8. b3 {[%clk 0:02:59.7]}
8... Bd6 {[%clk 0:02:29.7]} 9. Bb2 {[%clk 0:02:59.3]} 9... a6 {[%clk 0:02:22.1]}
10. Nhf3 {[%clk 0:02:44.7]} 10... O-O {[%clk 0:01:57.7]} 11. O-O {[%clk
0:02:40.6]} 11... Bxf3 {[%clk 0:01:44]} 12. Nxf3 {[%clk 0:02:40.1]} 12... Qe7
{[%clk 0:01:42.2]} 13. Qc2 {[%clk 0:02:35.8]} 13... Ba3 {[%clk 0:01:41.3]} 14.
Rfd1 {[%clk 0:02:30]} 14... Bxb2 {[%clk 0:01:40.9]} 15. Qxb2 {[%clk 0:02:30.9]}
15... Rfd8 {[%clk 0:01:35]} 16. Rac1 {[%clk 0:02:30.5]} 16... Rac8 {[%clk
0:01:34.8]} 17. a4 {[%clk 0:02:29.7]} 17... Qb4 {[%clk 0:01:01.3]} 18. Ne1
{[%clk 0:02:22]} 18... Ne4 {[%clk 0:00:46.5]} 19. Nd3 {[%clk 0:02:19.7]} 19...
Qe7 {[%clk 0:00:31.7]} 20. c5 {[%clk 0:02:13.7]} 20... Re8 {[%clk 0:00:27.8]}
21. b4 {[%clk 0:02:12.6]} 21... e5 {[%clk 0:00:20.5]} 22. dxe5 {[%clk
0:02:04.5]} 22... Nxe5 {[%clk 0:00:21.4]} 23. Nxe5 {[%clk 0:02:04.8]} 23... Qxe5
{[%clk 0:00:20.8]} 24. Qxe5 {[%clk 0:02:05]} 24... Rxe5 {[%clk 0:00:21.6]} 25.
f3 {[%clk 0:01:56.9]} 25... Nf6 {[%clk 0:00:18.3]} 26. Kf2 {[%clk 0:01:57]}
26... Rce8 {[%clk 0:00:18.5]} 27. Rc3 {[%clk 0:01:50.7]} 27... g5 {[%clk
0:00:18.4]} 28. Rd4 {[%clk 0:01:49.5]} 28... Kg7 {[%clk 0:00:16.3]} 29. b5
{[%clk 0:01:47.6]} 29... axb5 {[%clk 0:00:17.2]} 30. axb5 {[%clk 0:01:47.7]}
30... Ra8 {[%clk 0:00:17.8]} 31. bxc6 {[%clk 0:01:36.3]} 31... bxc6 {[%clk
0:00:18.7]} 32. Rd2 {[%clk 0:01:27.7]} 32... Ra5 {[%clk 0:00:16.3]} 33. Rdc2
{[%clk 0:01:16.4]} 33... Rf5 {[%clk 0:00:12.1]} 34. h3 {[%clk 0:01:10.6]} 34...
Ne4+ {[%clk 0:00:12.1]} 35. Ke1 {[%clk 0:01:08.2]} 35... Nxc3 {[%clk 0:00:10.2]}
36. Rxc3 {[%clk 0:01:09.1]} 36... Re5 {[%clk 0:00:09]} 37. Kf2 {[%clk 0:01:03]}
37... Ra2 {[%clk 0:00:08.7]} 38. Rd3 {[%clk 0:00:53.5]} 38... Rc2 {[%clk
0:00:06.7]} 39. Kf1 {[%clk 0:00:50.3]} 39... Rxc5 {[%clk 0:00:05.8]} 40. Rb3
{[%clk 0:00:50.2]} 40... Rc1+ {[%clk 0:00:05.7]} 41. Kf2 {[%clk 0:00:50.2]}
41... Rc2 {[%clk 0:00:06.3]} 42. Kf1 {[%clk 0:00:49.7]} 42... c5 {[%clk
0:00:05.6]} 43. Ke1 {[%clk 0:00:38]} 43... c4 {[%clk 0:00:04.4]} 44. Ra3 {[%clk
0:00:37.8]} 44... d4 {[%clk 0:00:04.9]} 45. Kd1 {[%clk 0:00:36.7]} 45... d3
{[%clk 0:00:03.7]} 46. Bxd3 {[%clk 0:00:26.2]} 46... cxd3 {[%clk 0:00:04.6]} 47.
Rxd3 {[%clk 0:00:26.8]} 47... Rxg2 {[%clk 0:00:05.1]} 48. Ke1 {[%clk 0:00:25]}
48... Ra5 {[%clk 0:00:05.4]} 49. Kf1 {[%clk 0:00:22.3]} 49... Rc2 {[%clk
0:00:05.4]} 50. Rd1 {[%clk 0:00:21.3]} 50... Raa2 {[%clk 0:00:06]} 51. Rb1
{[%clk 0:00:12.4]} 51... Rh2 {[%clk 0:00:04.8]} 52. Kg1 {[%clk 0:00:12.5]} 52...
Rag2+ {[%clk 0:00:05.1]} 53. Kf1 {[%clk 0:00:13]} 53... Rh1+ {[%clk 0:00:04.2]}
54. Kxg2 {[%clk 0:00:13.2]} 54... Rxb1 {[%clk 0:00:05.1]} 55. Kg3 {[%clk
0:00:13.7]} 55... Rb4 {[%clk 0:00:05.3]} 56. e4 {[%clk 0:00:13.5]} 56... Kg6
{[%clk 0:00:04.6]} 57. Kg4 {[%clk 0:00:13.9]} 57... f5+ {[%clk 0:00:05.3]} 0-1

[Event "Early-Titled-Tuesday-Blitz-June-18-2024"]
[Site "Chess.com"]
[Date "2024.06.18"]
[Round "4"]
[White "Agustin_Meza"]
[Black "AlexanderKing"]
[Result "0-1"]
[WhiteElo "2235"]
[BlackElo "2522"]
[TimeControl "180+1"]
[EndTime "8:42:01 PDT"]
[Termination "AlexanderKing won on time"]

1. e4 {[%clk 0:03:00.9]} 1... e5 {[%clk 0:02:59.3]} 2. Nf3 {[%clk 0:02:56]} 2...
Nc6 {[%clk 0:02:59.3]} 3. Bb5 {[%clk 0:02:48.7]} 3... a6 {[%clk 0:02:58]} 4. Ba4
{[%clk 0:02:48.4]} 4... Nf6 {[%clk 0:02:57.5]} 5. O-O {[%clk 0:02:35.7]} 5...
Nxe4 {[%clk 0:02:56.2]} 6. d4 {[%clk 0:02:35.4]} 6... b5 {[%clk 0:02:56.2]} 7.
Bb3 {[%clk 0:02:34.5]} 7... d5 {[%clk 0:02:56.8]} 8. dxe5 {[%clk 0:02:33.6]}
8... Be6 {[%clk 0:02:56.5]} 9. c3 {[%clk 0:02:32.6]} 9... Be7 {[%clk 0:02:55.7]}
10. Nbd2 {[%clk 0:02:30]} 10... O-O {[%clk 0:02:53.8]} 11. Bc2 {[%clk
0:02:25.9]} 11... Nxd2 {[%clk 0:02:39.9]} 12. Qxd2 {[%clk 0:02:00.2]} 12... Qd7
{[%clk 0:02:36.3]} 13. Qf4 {[%clk 0:01:51.4]} 13... f6 {[%clk 0:01:47.3]} 14.
exf6 {[%clk 0:01:47.9]} 14... Rxf6 {[%clk 0:01:46.3]} 15. Qg3 {[%clk 0:01:40.9]}
15... h6 {[%clk 0:01:25.9]} 16. Bf4 {[%clk 0:01:15]} 16... Raf8 {[%clk
0:00:38.2]} 17. Ne5 {[%clk 0:01:07.9]} 17... Nxe5 {[%clk 0:00:30.4]} 18. Bxe5
{[%clk 0:01:06]} 18... Bd6 {[%clk 0:00:20.9]} 19. Bxd6 {[%clk 0:00:31.3]} 19...
cxd6 {[%clk 0:00:21.8]} 20. Rae1 {[%clk 0:00:28]} 20... d4 {[%clk 0:00:13.8]}
21. cxd4 {[%clk 0:00:19.1]} 21... Bc4 {[%clk 0:00:09.1]} 22. Bb3 {[%clk
0:00:18.8]} 22... d5 {[%clk 0:00:05.5]} 23. Bxc4 {[%clk 0:00:15.6]} 23... dxc4
{[%clk 0:00:06.4]} 24. Qe5 {[%clk 0:00:14.9]} 24... Rd6 {[%clk 0:00:05.7]} 25.
Rd1 {[%clk 0:00:13.5]} 25... Rd8 {[%clk 0:00:06.1]} 26. h3 {[%clk 0:00:10.2]}
26... Kh8 {[%clk 0:00:04.5]} 27. d5 {[%clk 0:00:09.3]} 27... Rxd5 {[%clk
0:00:04.2]} 28. Rxd5 {[%clk 0:00:09.1]} 28... Qxd5 {[%clk 0:00:05.1]} 29. Qc7
{[%clk 0:00:09.3]} 29... Qd2 {[%clk 0:00:01.9]} 30. Qb6 {[%clk 0:00:06.2]} 30...
Rd6 {[%clk 0:00:02.1]} 31. Qb8+ {[%clk 0:00:06.1]} 31... Kh7 {[%clk 0:00:03]}
32. Qa8 {[%clk 0:00:05.3]} 32... Rg6 {[%clk 0:00:03.5]} 33. Qe4 {[%clk
0:00:04.9]} 33... Qxb2 {[%clk 0:00:03.7]} 34. h4 {[%clk 0:00:03.9]} 34... h5
{[%clk 0:00:01.9]} 35. Qf5 {[%clk 0:00:03.7]} 35... Kh6 {[%clk 0:00:01.6]} 36.
Qf4+ {[%clk 0:00:04]} 36... Kh7 {[%clk 0:00:01.9]} 37. Qf5 {[%clk 0:00:04.6]}
37... Qe2 {[%clk 0:00:02.1]} 38. f3 {[%clk 0:00:04.4]} 38... Qe3+ {[%clk
0:00:02]} 39. Kh1 {[%clk 0:00:02.9]} 39... Qh6 {[%clk 0:00:02.9]} 40. Qh3 {[%clk
0:00:02.8]} 40... Qf4 {[%clk 0:00:02.7]} 41. Kg1 {[%clk 0:00:02.3]} 41... Qd4+
{[%clk 0:00:02.5]} 42. Kh1 {[%clk 0:00:02.2]} 42... Qf4 {[%clk 0:00:03]} 43. Qe6
{[%clk 0:00:02.4]} 43... Qxh4+ {[%clk 0:00:03]} 44. Qh3 {[%clk 0:00:02.3]} 44...
Qxh3+ {[%clk 0:00:03.4]} 45. gxh3 {[%clk 0:00:02.6]} 45... c3 {[%clk 0:00:04]}
46. Rc1 {[%clk 0:00:02.7]} 46... b4 {[%clk 0:00:02.5]} 47. Rc2 {[%clk
0:00:02.5]} 47... a5 {[%clk 0:00:02.8]} 48. f4 {[%clk 0:00:02.5]} 48... a4
{[%clk 0:00:03.1]} 49. f5 {[%clk 0:00:02.6]} 49... Rc6 {[%clk 0:00:03.7]} 50.
Re2 {[%clk 0:00:02.3]} 50... c2 {[%clk 0:00:03.4]} 51. f6 {[%clk 0:00:02]} 51...
gxf6 {[%clk 0:00:03.4]} 52. Re7+ {[%clk 0:00:02.4]} 52... Kg6 {[%clk 0:00:03.8]}
53. Re4 {[%clk 0:00:01.9]} 53... c1=Q+ {[%clk 0:00:04.4]} 0-1

[Event "Early-Titled-Tuesday-Blitz-June-18-2024"]
[Site "Chess.com"]
[Date "2024.06.18"]
[Round "4"]
[White "Predatoru"]
[Black "micke12a"]
[Result "1-0"]
[WhiteElo "2563"]
[BlackElo "2389"]
[TimeControl "180+1"]
[EndTime "8:42:03 PDT"]
[Termination "Predatoru won by resignation"]

1. b3 {[%clk 0:02:56.5]} 1... Nf6 {[%clk 0:02:58.4]} 2. Bb2 {[%clk 0:02:56.5]}
2... g6 {[%clk 0:02:59.1]} 3. c4 {[%clk 0:02:55.8]} 3... c5 {[%clk 0:02:57]} 4.
g3 {[%clk 0:02:55.6]} 4... Bg7 {[%clk 0:02:57.1]} 5. Bg2 {[%clk 0:02:56.1]} 5...
O-O {[%clk 0:02:57.1]} 6. Nf3 {[%clk 0:02:56.6]} 6... Nc6 {[%clk 0:02:57.4]} 7.
O-O {[%clk 0:02:56.2]} 7... d6 {[%clk 0:02:55.7]} 8. d4 {[%clk 0:02:54.2]} 8...
Ne4 {[%clk 0:02:50.4]} 9. Nbd2 {[%clk 0:02:46.4]} 9... Nxd2 {[%clk 0:02:47.8]}
10. Qxd2 {[%clk 0:02:47.3]} 10... cxd4 {[%clk 0:02:22.4]} 11. Nxd4 {[%clk
0:02:46.8]} 11... Bd7 {[%clk 0:02:22.8]} 12. Nb5 {[%clk 0:02:19.2]} 12... a6
{[%clk 0:02:18.7]} 13. Bxg7 {[%clk 0:02:18.4]} 13... Kxg7 {[%clk 0:02:19.6]} 14.
Nc3 {[%clk 0:02:18.5]} 14... Rb8 {[%clk 0:02:16.9]} 15. Rfc1 {[%clk 0:02:09]}
15... b5 {[%clk 0:02:16.1]} 16. cxb5 {[%clk 0:02:08.7]} 16... axb5 {[%clk
0:02:16.4]} 17. Nxb5 {[%clk 0:02:08.2]} 17... Rxb5 {[%clk 0:02:11.6]} 18. Bxc6
{[%clk 0:02:07.8]} 18... Bxc6 {[%clk 0:02:09.2]} 19. Rxc6 {[%clk 0:02:08.7]}
19... Qa8 {[%clk 0:02:06.7]} 20. Qc3+ {[%clk 0:02:05.5]} 20... Kg8 {[%clk
0:02:01.5]} 21. Rc7 {[%clk 0:02:05.8]} 21... Qe4 {[%clk 0:01:57.4]} 22. Qd3
{[%clk 0:02:01.7]} 22... Qxd3 {[%clk 0:01:48.7]} 23. exd3 {[%clk 0:02:02.6]}
23... Ra8 {[%clk 0:01:44.3]} 24. Rxe7 {[%clk 0:01:57.1]} 24... Rxb3 {[%clk
0:01:41.5]} 25. Re8+ {[%clk 0:01:52.2]} 25... Rxe8 {[%clk 0:01:39.1]} 26. axb3
{[%clk 0:01:52.8]} 26... Re2 {[%clk 0:01:22.5]} 27. Ra6 {[%clk 0:01:38.5]} 27...
d5 {[%clk 0:01:11.7]} 28. Ra5 {[%clk 0:01:38.1]} 28... Rb2 {[%clk 0:01:09]} 29.
Rb5 {[%clk 0:01:36.2]} 29... Kg7 {[%clk 0:01:04.8]} 30. Kg2 {[%clk 0:01:29.4]}
30... Kf6 {[%clk 0:00:56.2]} 31. Kf3 {[%clk 0:01:29.8]} 31... Ke5 {[%clk
0:00:50.7]} 32. Ke3 {[%clk 0:01:30.2]} 32... g5 {[%clk 0:00:32.7]} 33. f4+
{[%clk 0:01:04.5]} 33... gxf4+ {[%clk 0:00:31.4]} 34. gxf4+ {[%clk 0:01:05.4]}
34... Ke6 {[%clk 0:00:31.9]} 35. Kd4 {[%clk 0:01:01.5]} 35... Rxh2 {[%clk
0:00:29.6]} 36. Rxd5 {[%clk 0:00:59.3]} 36... Rh4 {[%clk 0:00:27.3]} 37. Re5+
{[%clk 0:00:54.4]} 37... Kd6 {[%clk 0:00:26.2]} 38. Ke4 {[%clk 0:00:54]} 38...
Rh1 {[%clk 0:00:26.3]} 39. b4 {[%clk 0:00:48.3]} 39... h5 {[%clk 0:00:25.7]} 40.
b5 {[%clk 0:00:45.3]} 40... h4 {[%clk 0:00:25.2]} 41. Rh5 {[%clk 0:00:45.6]}
41... h3 {[%clk 0:00:23.6]} 42. Kf5 {[%clk 0:00:29.3]} 42... Rb1 {[%clk
0:00:17.9]} 43. Rxh3 {[%clk 0:00:27.3]} 43... Rxb5+ {[%clk 0:00:17.6]} 44. Kf6
{[%clk 0:00:27.9]} 44... Rb7 {[%clk 0:00:16.8]} 45. Rh7 {[%clk 0:00:25.4]} 45...
Rb3 {[%clk 0:00:16.7]} 46. Rxf7 {[%clk 0:00:20.5]} 46... Rxd3 {[%clk 0:00:16.6]}
47. Rf8 {[%clk 0:00:21]} 47... Kd7 {[%clk 0:00:16.5]} 48. f5 {[%clk 0:00:21.6]}
48... Rg3 {[%clk 0:00:11.4]} 49. Kf7 {[%clk 0:00:20.4]} 49... Rg4 {[%clk
0:00:10.3]} 50. Ra8 {[%clk 0:00:19.3]} 50... Rg3 {[%clk 0:00:08.4]} 51. Ra1
{[%clk 0:00:18.4]} 51... Kd6 {[%clk 0:00:07.9]} 52. f6 {[%clk 0:00:17.6]} 52...
Rf3 {[%clk 0:00:05.7]} 53. Rd1+ {[%clk 0:00:16.6]} 53... Ke5 {[%clk 0:00:06.1]}
54. Ke7 {[%clk 0:00:16.8]} 54... Ra3 {[%clk 0:00:03.6]} 55. f7 {[%clk
0:00:11.7]} 55... Ra7+ {[%clk 0:00:03.5]} 56. Rd7 {[%clk 0:00:12.3]} 56... Ra6
{[%clk 0:00:02.6]} 57. f8=Q {[%clk 0:00:11.8]} 57... Re6+ {[%clk 0:00:02.7]} 58.
Kd8 {[%clk 0:00:12.1]} 1-0

[Event "Early-Titled-Tuesday-Blitz-June-18-2024"]
[Site "Chess.com"]
[Date "2024.06.18"]
[Round "4"]
[White "rollercoaster29"]
[Black "Niteshch"]
[Result "1-0"]
[WhiteElo "2513"]
[BlackElo "2315"]
[TimeControl "180+1"]
[EndTime "8:42:04 PDT"]
[Termination "rollercoaster29 won by resignation"]

1. e4 {[%clk 0:02:54.8]} 1... c5 {[%clk 0:02:59.6]} 2. Nf3 {[%clk 0:02:54.4]}
2... Nc6 {[%clk 0:02:59.6]} 3. Bb5 {[%clk 0:02:51.2]} 3... e6 {[%clk 0:02:58.5]}
4. Bxc6 {[%clk 0:02:50.1]} 4... bxc6 {[%clk 0:02:58.3]} 5. O-O {[%clk
0:02:48.6]} 5... Ne7 {[%clk 0:02:30.5]} 6. b3 {[%clk 0:02:46.9]} 6... Ng6 {[%clk
0:02:23.4]} 7. Bb2 {[%clk 0:02:37.3]} 7... f6 {[%clk 0:02:14]} 8. e5 {[%clk
0:01:20.8]} 8... Be7 {[%clk 0:02:07.5]} 9. Re1 {[%clk 0:01:10.8]} 9... O-O
{[%clk 0:01:58.2]} 10. d3 {[%clk 0:01:10.5]} 10... fxe5 {[%clk 0:01:41]} 11.
Nxe5 {[%clk 0:01:09.6]} 11... Bf6 {[%clk 0:01:20.3]} 12. Nd2 {[%clk 0:00:47.8]}
12... Nf4 {[%clk 0:00:53.8]} 13. Ndf3 {[%clk 0:00:39.1]} 13... d6 {[%clk
0:00:39.9]} 14. Nc4 {[%clk 0:00:37.8]} 14... e5 {[%clk 0:00:39.8]} 15. Ne3
{[%clk 0:00:34.2]} 15... d5 {[%clk 0:00:31.9]} 16. c4 {[%clk 0:00:30.5]} 16...
e4 {[%clk 0:00:24.8]} 17. Bxf6 {[%clk 0:00:28.4]} 17... Qxf6 {[%clk 0:00:23.8]}
18. dxe4 {[%clk 0:00:22.8]} 18... dxe4 {[%clk 0:00:23.7]} 19. Nd2 {[%clk
0:00:22.8]} 19... Nh3+ {[%clk 0:00:18.4]} 20. gxh3 {[%clk 0:00:20.3]} 20...
Qxf2+ {[%clk 0:00:18.3]} 21. Kh1 {[%clk 0:00:20.8]} 21... Bxh3 {[%clk
0:00:17.1]} 22. Nxe4 {[%clk 0:00:20.4]} 22... Qf4 {[%clk 0:00:15.7]} 23. Ng3
{[%clk 0:00:19.2]} 23... Rad8 {[%clk 0:00:14.5]} 24. Qc2 {[%clk 0:00:11.7]}
24... Qf3+ {[%clk 0:00:12]} 25. Kg1 {[%clk 0:00:11.8]} 25... h5 {[%clk 0:00:11]}
26. Qe4 {[%clk 0:00:09.4]} 26... Qxe4 {[%clk 0:00:08.8]} 27. Nxe4 {[%clk
0:00:09.5]} 27... Rfe8 {[%clk 0:00:08.4]} 28. Ng3 {[%clk 0:00:08.8]} 28... h4
{[%clk 0:00:08]} 29. Ngf5 {[%clk 0:00:08.5]} 29... g6 {[%clk 0:00:06.2]} 30.
Nxh4 {[%clk 0:00:08.6]} 30... Kg7 {[%clk 0:00:06.3]} 31. Nf3 {[%clk 0:00:07.9]}
31... Re4 {[%clk 0:00:05.1]} 32. Ng5 {[%clk 0:00:07.7]} 32... Rh4 {[%clk
0:00:04.1]} 33. Nxh3 {[%clk 0:00:08]} 33... Rxh3 {[%clk 0:00:05]} 34. Kg2 {[%clk
0:00:07.3]} 34... Rh5 {[%clk 0:00:04.7]} 35. Nf1 {[%clk 0:00:06.2]} 35... Rd3
{[%clk 0:00:03.8]} 36. Re3 {[%clk 0:00:06]} 36... Rg5+ {[%clk 0:00:03.6]} 37.
Kf2 {[%clk 0:00:05.9]} 37... Rf5+ {[%clk 0:00:03.9]} 38. Ke2 {[%clk 0:00:05.6]}
38... Rd7 {[%clk 0:00:03.6]} 39. Re1 {[%clk 0:00:03.6]} 39... Rdf7 {[%clk
0:00:02.2]} 40. Ng3 {[%clk 0:00:03.9]} 40... Rf2+ {[%clk 0:00:02.1]} 41. Kd3
{[%clk 0:00:04]} 41... Rxh2 {[%clk 0:00:02.2]} 42. Re7 {[%clk 0:00:03.3]} 42...
Rxa2 {[%clk 0:00:02.2]} 43. Rxf7+ {[%clk 0:00:02.5]} 43... Kxf7 {[%clk
0:00:03.1]} 44. Rf1+ {[%clk 0:00:02.9]} 44... Kg7 {[%clk 0:00:03.2]} 45. Ne4
{[%clk 0:00:03.8]} 45... Rb2 {[%clk 0:00:03.2]} 46. Kc3 {[%clk 0:00:03.9]} 46...
Re2 {[%clk 0:00:02.9]} 47. Nxc5 {[%clk 0:00:04.3]} 47... a5 {[%clk 0:00:03.3]}
48. Nb7 {[%clk 0:00:04.2]} 48... Re3+ {[%clk 0:00:03.3]} 49. Kb2 {[%clk
0:00:04.2]} 49... a4 {[%clk 0:00:03.3]} 50. bxa4 {[%clk 0:00:04.4]} 50... Rd3
{[%clk 0:00:03.7]} 51. Nc5 {[%clk 0:00:04.5]} 51... Rd4 {[%clk 0:00:04.1]} 52.
Ne6+ {[%clk 0:00:05]} 52... Kh6 {[%clk 0:00:04]} 53. Nxd4 {[%clk 0:00:05.9]}
53... g5 {[%clk 0:00:03.9]} 54. Nxc6 {[%clk 0:00:05.4]} 54... Kg6 {[%clk
0:00:04.4]} 55. Ne5+ {[%clk 0:00:05.9]} 1-0